bitfinex-derivatives/quotes_SOLF0:USTF0_20230103
["timestamp","ask_amount","ask_price","bid_price","bid_amount"]
[1672762191796,55.81,13.439,13.359,5.0]
[1672762192012,5.0,13.442,13.361,5.0]
[1672762192223,55.81,13.439,13.362,56.13]
[1672762192433,5.0,13.442,13.389,0.06363588]
[1672762192643,49.99993451,13.433,13.364,56.12]
[1672762192847,5.0,13.442,13.364,56.12]
[1672762192848,55.81,13.439,13.364,56.12]
[1672762193060,49.99993451,13.433,13.365,5.0]
[1672762193269,5.0,13.438,13.366,56.11]
[1672762193477,0.06589122,13.4,13.391,0.06375177]
[1672762193690,0.07033003,13.4,13.391,0.06985566]
[1672762193904,5.0,13.438,13.369,5.0]
[1672762194113,5.0,13.438,13.37,56.1]
[1672762194325,5.0,13.438,13.371,5.0]
[1672762194530,5.0,13.438,13.372,56.09]
[1672762194740,0.0632389,13.403,13.394,0.06851359]
[1672762194953,0.0632389,13.403,13.394,0.00851359]
[1672762196001,49.99993451,13.4,13.394,0.00851359]
[1672762196220,55.97,13.399,13.394,0.00851359]
[1672762196427,55.96,13.402,13.394,0.00851359]
[1672762196638,5.0,13.401,13.394,0.00851359]
[1672762196844,5.0,13.399,13.394,0.00851359]
[1672762197057,54.99993451,13.399,13.394,0.00851359]
[1672762197272,60.98,13.398,13.394,0.00851359]
[1672762197482,5.0,13.397,13.331,56.26]
[1672762197683,5.0,13.397,13.335,56.24]
[1672762197900,5.0,13.398,13.356,5.0]
[1672762198110,5.0,13.399,13.356,5.0]
[1672762198530,0.07045844,13.382,13.373,0.06374415]
[1672762199370,0.07045844,13.382,13.373,0.00374415]
[1672762204625,49.99993451,13.432,13.357,5.0]
[1672762204837,55.82,13.437,13.359,5.0]
[1672762205040,5.0,13.421,13.357,61.15]
[1672762205254,5.0,13.421,13.357,5.0]
[1672762205461,5.0,13.421,13.358,56.15]
[1672762205682,5.0,13.421,13.378,0.06649647]
[1672762205890,5.0,13.421,13.36,56.14]
[1672762206200,5.0,13.421,13.361,5.0]
[1672762206409,5.0,13.421,13.362,56.13]
[1672762206615,5.0,13.44,13.384,0.06840259]
[1672762206829,0.06304408,13.416,13.406,0.07147356]
[1672762207045,0.06507081,13.416,13.406,0.06385051]
[1672762207259,5.0,13.447,13.406,0.06385051]
[1672762207568,5.0,13.447,13.367,5.0]
[1672762207774,5.0,13.45,13.368,56.1]
[1672762207980,5.0,13.466,13.369,5.0]
[1672762208191,43.2422,13.505,13.369,5.0]
[1672762208192,49.99993451,13.483,13.412,0.06478043]
[1672762208409,49.99993451,13.483,13.413,55.92]
[1672762208618,5.0,13.481,13.373,5.0]
[1672762208822,5.0,13.481,13.374,56.08]
[1672762209033,54.99993451,13.481,13.375,5.0]
[1672762209242,5.0,13.48,13.377,5.0]
[1672762209453,0.06153189,13.427,13.418,0.06760922]
[1672762209670,49.99993451,13.471,13.419,55.89]
[1672762209880,49.99993451,13.45,13.378,56.06]
[1672762210093,49.99993451,13.44,13.374,56.08]
[1672762210297,49.99993451,13.43,13.366,56.11]
[1672762210508,105.77,13.447,13.364,56.12]
[1672762210718,0.06462737,13.41,13.401,0.06052881]
[1672762210925,0.06654651,13.41,13.401,0.07097017]
[1672762211252,5.0,13.409,13.361,5.0]
[1672762211560,5.0,13.409,13.362,56.13]
[1672762211766,5.0,13.409,13.357,5.0]
[1672762211974,5.0,13.409,13.358,56.15]
[1672762212186,0.06275537,13.388,13.378,0.06797941]
[1672762212394,0.06388874,13.388,13.378,0.06333718]
[1672762216083,5.0,13.434,13.38,5.0]
[1672762216286,5.0,13.434,13.381,56.05]
[1672762216705,5.0,13.434,13.382,5.0]
[1672762216919,5.0,13.434,13.383,56.04]
[1672762217132,0.06227882,13.413,13.403,0.06021829]
[1672762217339,5.0,13.451,13.403,0.06432437]
[1672762217660,5.0,13.451,13.404,55.95]
[1672762217863,5.0,13.451,13.387,56.02]
[1672762218070,5.0,13.451,13.388,5.0]
[1672762218393,0.06174076,13.424,13.415,0.06917621]
[1672762218600,5.0,13.457,13.416,55.9]
[1672762218817,5.0,13.457,13.39,5.0]
[1672762219131,5.0,13.457,13.392,5.0]
[1672762219333,55.0,13.457,13.393,56.0]
[1672762219549,0.07000871,13.43,13.42,0.06467971]
[1672762219866,0.06070689,13.43,13.42,0.06897093]
[1672762220287,0.06070689,13.43,13.42,0.00897093]
[1672762221436,49.99993451,13.426,13.42,0.00897093]
[1672762221758,5.0,13.425,13.42,0.00897093]
[1672762222282,0.06013022,13.427,13.42,0.00897093]
[1672762227326,5.0,13.469,13.394,56.0]
[1672762227537,54.99993451,13.469,13.394,56.0]
[1672762227742,5.0,13.469,13.395,5.0]
[1672762227949,5.0,13.469,13.396,55.99]
[1672762228156,5.0,13.467,13.397,5.0]
[1672762228378,5.0,13.467,13.423,0.06219149]
[1672762228584,5.0,13.467,13.424,55.87]
[1672762228795,5.0,13.467,13.4,55.97]
[1672762229006,5.0,13.467,13.401,5.0]
[1672762229218,5.0,13.467,13.402,55.96]
[1672762229424,0.06762453,13.439,13.43,0.06787867]
[1672762229636,0.06949308,13.439,13.43,0.06158191]
[1672762231635,5.0,13.471,13.404,55.95]
[1672762232260,5.0,13.471,13.405,5.0]
[1672762232477,5.0,13.475,13.406,55.95]
[1672762232685,5.0,13.475,13.436,0.06224535]
[1672762232895,5.0,13.475,13.408,55.94]
[1672762233105,5.0,13.475,13.409,5.0]
[1672762233319,5.0,13.475,13.41,55.93]
[1672762233527,5.0,13.475,13.411,5.0]
[1672762233848,0.07067471,13.448,13.438,0.06896517]
[1672762234056,5.0,13.475,13.412,55.92]
[1672762234057,5.0,13.475,13.413,5.0]
[1672762234268,5.0,13.475,13.414,55.91]
[1672762234474,5.0,13.475,13.415,5.0]
[1672762234685,5.0,13.475,13.416,55.9]
[1672762235005,0.06959725,13.45,13.441,0.06306349]
[1672762235206,0.07037788,13.45,13.441,0.06727231]
[1672762239306,7.788e-05,13.45,13.441,0.06727231]
[1672762239520,54.99993451,13.506,13.442,60.8]
[1672762239941,5.0,13.506,13.442,60.8]
[1672762240143,49.99993451,13.496,13.442,60.8]
[1672762240356,49.99993451,13.496,13.443,5.0]
[1672762240563,0.06032502,13.474,13.465,0.07112466]
[1672762240783,0.06975124,13.474,13.465,0.07058254]
[1672762243196,5.0,13.531,13.465,0.07058254]
[1672762243410,54.99993451,13.522,13.455,5.0]
[1672762243612,49.99993451,13.512,13.455,5.0]
[1672762243820,5.0,13.52,13.457,5.0]
[1672762244035,50.0,13.511,13.416,55.9]
[1672762244247,0.06945553,13.484,13.474,0.06156754]
[1672762244453,49.99993451,13.483,13.474,0.06827872]
[1672762244667,5.0,13.483,13.419,5.0]
[1672762244878,5.0,13.483,13.42,55.89]
[1672762245082,5.0,13.483,13.421,5.0]
[1672762245298,5.0,13.483,13.423,5.0]
[1672762245512,5.0,13.483,13.424,55.87]
[1672762245715,5.0,13.5,13.448,0.0701056]
[1672762245926,5.0,13.5,13.449,55.77]
[1672762246136,54.99993451,13.5,13.426,55.86]
[1672762246451,49.99993451,13.45,13.168,586.0]
[1672762246664,5.0,13.449,13.168,586.0]
[1672762246980,0.06382786,13.423,13.413,0.06577998]
[1672762247190,0.00216045,13.423,13.413,0.0698986]
[1672762247502,49.99993451,13.419,13.413,0.0098986]
[1672762247815,0.00216045,13.423,13.413,0.0098986]
[1672762248552,50.0,13.417,13.413,0.0098986]
[1672762248763,5.0,13.413,13.333,56.25]
[1672762248970,50.0,13.407,13.339,56.23]
[1672762249188,5.0,13.398,13.331,56.26]
[1672762249397,5.0,13.398,13.335,56.24]
[1672762249607,5.0,13.398,13.333,56.25]
[1672762249812,0.0706817,13.381,13.372,0.07068452]
[1672762250021,5.0,13.398,13.339,56.23]
[1672762250447,5.0,13.398,13.34,5.0]
[1672762250657,49.99993451,13.39,13.34,5.0]
[1672762250869,5.0,13.389,13.34,5.0]
[1672762251079,0.0647167,13.377,13.368,0.06032606]
[1672762251392,0.06498805,13.377,13.368,0.06956044]
[1672762252235,0.00050563,13.377,13.368,0.06956044]
[1672762252442,0.00050563,13.377,13.369,56.1]
[1672762253490,5.0,13.426,13.37,5.0]
[1672762253701,49.99993451,13.416,13.372,5.0]
[1672762253910,5.0,13.426,13.371,56.09]
[1672762254118,5.0,13.415,13.359,5.0]
[1672762254329,5.0,13.415,13.361,5.0]
[1672762254542,0.06993579,13.393,13.383,0.06455922]
[1672762254859,0.06196154,13.393,13.383,0.06790632]
[1672762256536,49.99993451,13.384,13.383,0.00790632]
[1672762256745,5.0,13.401,13.333,56.25]
[1672762256960,5.0,13.393,13.338,5.0]
[1672762257171,5.0,13.393,13.339,56.23]
[1672762257381,5.0,13.393,13.335,56.24]
[1672762257588,0.06272321,13.379,13.369,0.00556829]
[1672762257795,49.99993451,13.374,13.33,5.0]
[1672762258008,5.0,13.373,13.33,5.0]
[1672762258430,5.0,13.391,13.332,5.0]
[1672762258642,49.99993451,13.374,13.368,0.0646785]
[1672762258847,49.99993451,13.374,13.366,0.0690819]
[1672762259059,5.0,13.383,13.317,61.32]
[1672762259268,5.0,13.381,13.319,56.31]
[1672762259475,5.0,13.363,13.319,56.31]
[1672762259902,5.0,13.363,13.323,56.29]
[1672762260116,54.99993451,13.363,13.324,5.0]
[1672762260327,5.0,13.362,13.317,56.32]
[1672762260638,5.0,13.362,13.318,5.0]
[1672762260848,5.0,13.372,13.319,56.31]
[1672762261055,0.06600717,13.35,13.341,0.06310481]
[1672762261271,5.0,13.372,13.341,0.0680453]
[1672762261477,5.0,13.372,13.352,0.0635319]
[1672762261688,5.0,13.372,13.323,5.0]
[1672762261900,5.0,13.372,13.343,0.06347067]
[1672762262110,0.06082048,13.362,13.353,0.06175974]
[1672762262323,0.0662315,13.362,13.353,0.0604764]
[1672762262536,5.0,13.361,13.319,5.0]
[1672762262744,5.0,13.361,13.278,56.48]
[1672762263581,0.06802266,13.343,13.334,0.06217819]
[1672762263898,0.06802266,13.343,13.278,56.48]
[1672762263899,5.0,13.342,13.278,56.48]
[1672762264107,5.0,13.352,13.278,56.48]
[1672762264528,54.99993451,13.352,13.278,56.48]
[1672762264846,0.06763556,13.339,13.329,0.06512026]
[1672762268313,0.06763556,13.339,13.329,0.00512026]
[1672762271051,5.06763556,13.339,13.329,0.00512026]
[1672762271262,0.06763556,13.339,13.329,0.00512026]
[1672762271892,49.99993451,13.33,13.329,0.00512026]
[1672762272099,49.99993451,13.33,13.325,0.06794899]
[1672762272309,5.0,13.329,13.277,5.0]
[1672762272520,5.0,13.329,13.244,56.63]
[1672762273044,50.0,13.318,13.244,56.63]
[1672762273252,0.06165291,13.302,13.244,56.63]
[1672762273462,5.0,13.317,13.244,56.63]
[1672762273674,5.0,13.329,13.244,56.63]
[1672762273993,5.0,13.329,13.277,56.49]
[1672762274205,49.99993451,13.319,13.244,56.63]
[1672762274510,0.06459985,13.302,13.293,0.06073114]
[1672762274724,0.06015932,13.302,13.293,0.06298052]
[1672762280611,5.0,13.327,13.28,5.0]
[1672762280816,5.0,13.327,13.281,56.47]
[1672762281028,5.0,13.327,13.282,5.0]
[1672762281241,5.0,13.334,13.283,56.46]
[1672762281557,0.062561,13.313,13.284,5.0]
[1672762281767,50.0,13.364,13.284,5.0]
[1672762281768,50.0,13.373,13.286,5.0]
[1672762281974,54.99993451,13.345,13.288,5.0]
[1672762282181,5.0,13.345,13.289,56.44]
[1672762282397,5.0,13.345,13.29,5.0]
[1672762282607,5.0,13.345,13.292,5.0]
[1672762282819,0.06091367,13.323,13.293,56.42]
[1672762283028,5.0,13.348,13.294,5.0]
[1672762283234,5.0,13.348,13.296,5.0]
[1672762283445,5.0,13.348,13.297,56.4]
[1672762283656,5.0,13.348,13.298,5.0]
[1672762283868,0.06785595,13.328,13.318,0.06399979]
[1672762284073,5.0,13.348,13.301,56.39]
[1672762285027,5.0,13.348,13.32,0.06567024]
[1672762285232,5.0,13.348,13.303,56.38]
[1672762285446,5.0,13.353,13.304,5.0]
[1672762285657,5.0,13.353,13.305,56.37]
[1672762286078,0.07001902,13.334,13.324,0.06711064]
[1672762286393,0.06704079,13.334,13.324,0.0690519]
[1672762288171,0.06704079,13.334,13.324,0.0090519]
[1672762297847,49.99993451,13.329,13.324,0.0090519]
[1672762298055,5.0,13.328,13.324,0.0090519]
[1672762298684,0.06608182,13.331,13.324,0.0090519]
[1672762299421,49.99993451,13.328,13.324,0.0090519]
[1672762299735,5.0,13.327,13.324,0.0090519]
[1672762299942,0.06608182,13.331,13.321,0.07057088]
[1672762300151,0.06830894,13.331,13.321,0.06266537]
[1672762301941,5.0,13.343,13.331,0.15099805]
[1672762302357,49.99993451,13.337,13.297,56.4]
[1672762302679,5.0,13.336,13.297,56.4]
[1672762302888,0.06397735,13.321,13.312,0.06724049]
[1672762303099,0.06445278,13.321,13.312,0.07058209]
[1672762303831,0.06445278,13.321,13.312,0.00058209]
[1672762309513,49.99993451,13.314,13.312,0.00058209]
[1672762309723,5.0,13.313,13.245,56.63]
[1672762309935,5.0,13.313,13.277,56.49]
[1672762310244,5.0,13.313,13.244,56.63]
[1672762310668,5.0,13.313,13.29,0.06255499]
[1672762310880,49.99993451,13.305,13.297,0.0713323]
[1672762311085,0.06835558,13.306,13.296,0.07005164]
[1672762311296,0.06296792,13.306,13.296,0.0622813]
[1672762311506,4.49533037,13.379,13.297,56.4]
[1672762311717,50.0,13.419,13.298,5.0]
[1672762311718,50.0,13.409,13.298,5.0]
[1672762311929,49.99993451,13.351,13.299,56.4]
[1672762312138,50.0,13.379,13.299,56.4]
[1672762312448,0.06418159,13.344,13.334,0.07115538]
[1672762312663,0.06693027,13.344,13.334,0.06677682]
[1672762313931,0.06693027,13.344,13.334,0.00677682]
[1672762315295,49.99993451,13.34,13.334,0.00677682]
[1672762315497,5.0,13.339,13.334,0.00677682]
[1672762317704,49.99993451,13.335,13.334,0.00677682]
[1672762317922,5.0,13.339,13.33,0.06629367]
[1672762318131,49.99993451,13.331,13.288,56.44]
[1672762318342,5.0,13.339,13.288,56.44]
[1672762318548,49.99993451,13.329,13.289,5.0]
[1672762318764,49.99993451,13.329,13.29,56.43]
[1672762319081,5.0,13.328,13.278,56.48]
[1672762319290,0.06363109,13.308,13.298,0.07047672]
[1672762319607,5.0,13.328,13.299,56.4]
[1672762319816,5.0,13.328,13.281,5.0]
[1672762320031,5.0,13.328,13.282,56.47]
[1672762320240,5.0,13.328,13.283,5.0]
[1672762320447,5.0,13.328,13.284,56.46]
[1672762320654,0.06921268,13.31,13.301,0.06519888]
[1672762320862,0.06055072,13.31,13.301,0.0607024]
[1672762324436,0.06055072,13.31,13.301,0.0007024]
[1672762324655,49.99993451,13.307,13.301,0.0007024]
[1672762324860,5.0,13.306,13.301,0.0007024]
[1672762325281,0.06055072,13.31,13.301,0.0007024]
[1672762333799,54.99993451,13.335,13.302,56.38]
[1672762334005,5.0,13.343,13.284,5.0]
[1672762334215,5.0,13.343,13.286,5.0]
[1672762334427,5.0,13.343,13.287,56.45]
[1672762334632,5.0,13.343,13.288,5.0]
[1672762334847,5.0,13.343,13.31,0.06712819]
[1672762335062,5.0,13.343,13.311,56.34]
[1672762335374,5.0,13.343,13.292,5.0]
[1672762335580,5.0,13.343,13.293,56.42]
[1672762335787,5.0,13.343,13.294,5.0]
[1672762336000,0.06583793,13.322,13.313,0.07035829]
[1672762336211,0.06800017,13.322,13.314,56.33]
[1672762336425,5.0,13.344,13.314,56.33]
[1672762336632,5.0,13.344,13.298,5.0]
[1672762336842,5.0,13.352,13.299,56.4]
[1672762337052,5.0,13.352,13.3,5.0]
[1672762337262,5.0,13.361,13.301,56.39]
[1672762337473,0.06992118,13.331,13.321,0.06722707]
[1672762337683,0.06936078,13.331,13.322,56.3]
[1672762337897,5.0,13.361,13.322,56.3]
[1672762338103,54.99993451,13.361,13.322,56.3]
[1672762338311,5.0,13.36,13.304,5.0]
[1672762338523,5.0,13.36,13.305,56.37]
[1672762338837,5.0,13.36,13.306,5.0]
[1672762339054,0.07094633,13.338,13.328,0.06208258]
[1672762339261,0.07094633,13.338,13.329,56.27]
[1672762339262,0.06890892,13.338,13.329,56.27]
[1672762339466,5.0,13.37,13.329,56.27]
[1672762339679,5.0,13.37,13.309,56.35]
[1672762339890,5.0,13.37,13.31,5.0]
[1672762340102,5.0,13.37,13.311,56.34]
[1672762340308,0.07125834,13.343,13.334,0.06103049]
[1672762340635,5.0,13.376,13.335,56.24]
[1672762341047,5.0,13.376,13.313,56.34]
[1672762341258,5.0,13.376,13.314,5.0]
[1672762341570,0.06224119,13.35,13.34,0.06008848]
[1672762341784,0.06221591,13.35,13.341,56.22]
[1672762343352,5.0,13.37,13.341,56.22]
[1672762343781,5.0,13.37,13.317,56.32]
[1672762343991,54.99993451,13.37,13.318,5.0]
[1672762344206,54.99993451,13.37,13.319,56.31]
[1672762344406,0.06687028,13.349,13.318,5.0]
[1672762344616,0.07038571,13.338,13.329,0.06671974]
[1672762344825,5.0,13.369,13.341,1.3]
[1672762345038,0.0626969,13.36,13.35,0.06249453]
[1672762345249,0.06136569,13.36,13.341,1.3]
[1672762345456,0.06161156,13.355,13.346,0.07004536]
[1672762345664,0.06578531,13.355,13.346,0.07004536]
[1672762346090,0.06578531,13.355,13.346,4.536e-05]
[1672762346830,49.99993451,13.349,13.346,4.536e-05]
[1672762347143,5.0,13.348,13.343,0.0600456]
[1672762347664,5.0,13.348,13.343,4.56e-05]
[1672762350185,54.99993451,13.378,13.343,4.56e-05]
[1672762350497,49.99993451,13.368,13.311,56.34]
[1672762350714,5.0,13.367,13.312,5.0]
[1672762351030,5.0,13.367,13.314,5.0]
[1672762351236,5.0,13.367,13.315,56.33]
[1672762351448,0.06471871,13.345,13.336,0.06905512]
[1672762351658,0.06612373,13.345,13.337,56.23]
[1672762351871,0.06612373,13.345,13.344,1.3]
[1672762352077,0.06612373,13.345,13.312,5.0]
[1672762352283,5.0,13.341,13.251,41.4431]
[1672762352499,49.99993451,13.338,13.252,41.4431]
[1672762352709,49.99993451,13.328,13.289,56.44]
[1672762353027,5.0,13.327,13.29,5.0]
[1672762353237,5.0,13.327,13.291,56.43]
[1672762353551,0.06660207,13.313,13.304,0.06311882]
[1672762353757,0.06620186,13.313,13.305,56.37]
[1672762353968,0.06620186,13.313,13.304,0.0695852]
[1672762354595,5.0,13.327,13.278,5.0]
[1672762354805,54.99993451,13.327,13.279,56.48]
[1672762355017,5.0,13.326,13.28,5.0]
[1672762355225,5.0,13.336,13.282,5.0]
[1672762355434,5.0,13.345,13.284,5.0]
[1672762355645,0.06066543,13.317,13.308,0.06143505]
[1672762355862,0.0603767,13.317,13.309,56.35]
[1672762356071,5.0,13.336,13.309,56.35]
[1672762356282,5.0,13.336,13.306,56.37]
[1672762356912,49.99993451,13.356,13.316,0.06397833]
[1672762357229,49.99993451,13.356,13.305,1.3]
[1672762357230,0.06284128,13.339,13.33,0.06833327]
[1672762357441,0.06943009,13.339,13.33,0.0674436]
[1672762358385,5.0,13.363,13.311,5.0]
[1672762358699,5.0,13.354,13.313,5.0]
[1672762358907,5.0,13.354,13.314,56.33]
[1672762359117,5.0,13.354,13.331,1.4]
[1672762359532,49.99993451,13.345,13.331,1.4]
[1672762359749,5.0,13.344,13.331,1.4]
[1672762360377,49.99993451,13.335,13.289,56.44]
[1672762360697,0.07094359,13.317,13.307,0.06952783]
[1672762360902,5.0,13.334,13.308,56.36]
[1672762361220,5.0,13.343,13.308,56.36]
[1672762361426,5.0,13.343,13.292,5.0]
[1672762361632,5.0,13.343,13.294,5.0]
[1672762361848,5.0,13.343,13.314,0.0655631]
[1672762362062,0.06719018,13.333,13.324,0.06454541]
[1672762362267,0.0706369,13.333,13.325,56.29]
[1672762362474,5.0,13.353,13.325,56.29]
[1672762362689,5.0,13.353,13.311,5.0]
[1672762362894,5.0,13.353,13.312,56.34]
[1672762363109,5.0,13.353,13.313,5.0]
[1672762363319,5.0,13.353,13.315,5.0]
[1672762363529,0.07001752,13.339,13.329,0.06537477]
[1672762363743,0.06755074,13.339,13.33,56.26]
[1672762364159,55.0,13.4,13.331,5.0]
[1672762364476,5.0,13.371,13.332,56.26]
[1672762364682,49.99993451,13.363,13.318,56.31]
[1672762364893,5.0,13.362,13.319,5.0]
[1672762365099,0.06247204,13.345,13.336,0.06004488]
[1672762365314,0.06499254,13.345,13.337,56.23]
[1672762365740,5.0,13.371,13.337,56.23]
[1672762365942,5.0,13.371,13.323,5.0]
[1672762366155,5.0,13.371,13.325,5.0]
[1672762366361,49.99993451,13.362,13.326,56.28]
[1672762366575,50.0,13.39,13.327,5.0]
[1672762366790,0.06439372,13.36,13.35,0.06094901]
[1672762366996,0.07025879,13.36,13.351,56.18]
[1672762367420,5.0,13.392,13.351,56.18]
[1672762367734,5.0,13.399,13.337,5.0]
[1672762367735,5.0,13.399,13.355,50.0]
[1672762367941,50.0,13.408,13.356,61.15]
[1672762368255,5.0,13.407,13.357,5.0]
[1672762368470,0.06143335,13.387,13.377,0.07059962]
[1672762368678,0.06482056,13.387,13.378,56.06]
[1672762368890,0.06482056,13.387,13.377,0.06161991]
[1672762370153,0.06482056,13.387,13.378,1.2]
[1672762373306,0.06482056,13.387,13.377,0.06161991]
[1672762374045,0.06482056,13.387,13.377,0.00161991]
[1672762374253,5.06482056,13.387,13.377,0.00161991]
[1672762374459,5.06482056,13.387,13.379,1.2]
[1672762374989,5.06482056,13.387,13.377,0.00161991]
[1672762375404,5.0,13.386,13.377,0.00161991]
[1672762375616,5.0,13.386,13.34,56.22]
[1672762376142,5.0,13.377,13.328,56.27]
[1672762376350,5.0,13.377,13.324,56.29]
[1672762376561,5.0,13.377,13.325,50.0]
[1672762376774,0.06427703,13.356,13.346,0.06809113]
[1672762376981,0.06657995,13.356,13.346,0.0693855]
[1672762378981,0.06657995,13.356,13.347,56.19]
[1672762383075,0.06657995,13.356,13.347,57.49]
[1672762383280,0.06657995,13.356,13.347,1.3]
[1672762383494,0.06657995,13.356,13.348,56.19]
[1672762384337,5.0,13.387,13.348,56.19]
[1672762384542,50.0,13.386,13.348,56.19]
[1672762384964,5.0,13.385,13.348,56.19]
[1672762385383,0.06306597,13.371,13.362,0.07043552]
[1672762385594,0.06306597,13.371,13.362,0.0700649]
[1672762386856,0.06306597,13.371,13.362,6.49e-05]
[1672762392011,40.9986,13.381,13.343,50.0]
[1672762392224,50.0,13.395,13.344,61.21]
[1672762392424,5.0,13.394,13.345,5.0]
[1672762392637,5.0,13.394,13.346,56.2]
[1672762392848,5.0,13.394,13.347,5.0]
[1672762393056,0.06976269,13.375,13.366,0.07098517]
[1672762393271,0.06183134,13.375,13.366,0.0706986]
[1672762394427,0.06183134,13.375,13.366,9.86e-05]
[1672762394637,5.0,13.374,13.335,56.24]
[1672762394849,5.0,13.374,13.332,50.0]
[1672762395162,5.0,13.374,13.333,56.25]
[1672762395479,5.0,13.374,13.327,56.28]
[1672762395897,0.06614534,13.355,13.346,0.06684983]
[1672762396102,0.06614534,13.355,13.346,0.06488645]
[1672762396103,0.06452257,13.355,13.346,0.06488645]
[1672762399049,0.06452257,13.355,13.347,56.19]
[1672762399891,0.06452257,13.355,13.346,0.06488645]
[1672762400311,0.06452257,13.355,13.347,56.19]
[1672762401043,0.06452257,13.355,13.347,57.79]
[1672762403039,0.06452257,13.355,13.347,1.6]
[1672762403776,0.06452257,13.355,13.348,56.19]
[1672762404407,0.06452257,13.355,13.347,56.19]
[1672762404932,0.06452257,13.355,13.346,0.06488645]
[1672762405353,0.06452257,13.355,13.347,1.1]
[1672762406402,5.0,13.372,13.333,56.25]
[1672762406721,5.0,13.372,13.323,56.29]
[1672762407456,0.06302073,13.352,13.343,0.06437814]
[1672762407661,0.06341916,13.352,13.323,56.29]
[1672762407873,5.0,13.372,13.313,56.34]
[1672762408089,46.0917,13.372,13.322,50.0]
[1672762408293,5.0,13.371,13.323,56.29]
[1672762408712,0.06375011,13.352,13.323,56.29]
[1672762408929,0.06040925,13.342,13.323,56.29]
[1672762409138,0.06638309,13.337,13.328,0.06328573]
[1672762409453,0.06978294,13.337,13.328,0.06810474]
[1672762410713,0.06978294,13.337,13.333,50.0]
[1672762411028,0.06835462,13.34,13.334,56.25]
[1672762411346,0.06436392,13.342,13.334,56.25]
[1672762411556,0.06101437,13.343,13.333,56.31772367]
[1672762411766,0.06019738,13.343,13.333,56.3153961]
[1672762412185,0.06019738,13.343,13.333,0.0653961]
[1672762413652,50.0,13.352,13.293,50.0]
[1672762413866,5.0,13.342,13.293,50.0]
[1672762414291,5.0,13.342,13.303,50.0]
[1672762414500,5.0,13.342,13.304,56.37]
[1672762414707,0.06256833,13.328,13.318,0.06894541]
[1672762414920,0.06466855,13.328,13.318,0.06438072]
[1672762415239,0.06466855,13.328,13.322,50.0]
[1672762415442,0.06466855,13.328,13.323,56.29]
[1672762416286,5.0,13.361,13.334,1.53533145]
[1672762416488,55.0,13.361,13.334,1.53533145]
[1672762416704,5.0,13.361,13.334,1.53533145]
[1672762416913,50.0,13.351,13.334,3.145e-05]
[1672762417124,0.07044586,13.347,13.338,0.06914808]
[1672762417340,0.06513473,13.347,13.334,3.145e-05]
[1672762417550,5.0,13.346,13.303,56.38]
[1672762417760,5.0,13.346,13.312,50.0]
[1672762417971,5.0,13.346,13.313,56.34]
[1672762418181,5.0,13.346,13.312,56.34]
[1672762418392,0.06683804,13.334,13.324,0.0637393]
[1672762418603,0.06201327,13.334,13.324,0.0688243]
[1672762419761,0.06201327,13.334,13.325,56.29]
[1672762420802,0.06201327,13.334,13.33,50.0]